[Event "Late-Titled-Tuesday-Blitz-April-23-2024"]
[Site "Chess.com"]
[Date "2024.04.23"]
[Round "3"]
[White "TheBigBoss04"]
[Black "Shankland"]
[Result "0-1"]
[WhiteElo "2792"]
[BlackElo "3064"]
[TimeControl "180+1"]
[EndTime "14:28:51 PDT"]
[Termination "Shankland won by resignation"]

1. Nf3 {[%clk 0:03:00.9]} 1... d5 {[%clk 0:02:59.4]} 2. e3 {[%clk 0:02:59.2]}
2... Nf6 {[%clk 0:02:59.2]} 3. c4 {[%clk 0:02:55.2]} 3... c6 {[%clk 0:02:59.3]}
4. b3 {[%clk 0:02:48.5]} 4... Bg4 {[%clk 0:02:58.3]} 5. Bb2 {[%clk 0:02:46.6]}
5... e6 {[%clk 0:02:58.4]} 6. Nc3 {[%clk 0:02:41.2]} 6... Nbd7 {[%clk
0:02:58.2]} 7. Be2 {[%clk 0:02:40.1]} 7... Bd6 {[%clk 0:02:57.1]} 8. h3 {[%clk
0:02:39.3]} 8... Bh5 {[%clk 0:02:56.7]} 9. d4 {[%clk 0:02:30.5]} 9... O-O {[%clk
0:02:55.3]} 10. Nd2 {[%clk 0:02:28.7]} 10... Bg6 {[%clk 0:02:54.4]} 11. O-O
{[%clk 0:02:28.1]} 11... Qe7 {[%clk 0:02:46.4]} 12. Rc1 {[%clk 0:02:17]} 12...
a6 {[%clk 0:02:43.9]} 13. Re1 {[%clk 0:02:14]} 13... Rad8 {[%clk 0:02:41.5]} 14.
Bf1 {[%clk 0:02:13.3]} 14... Rfe8 {[%clk 0:02:41]} 15. g3 {[%clk 0:02:11.8]}
15... e5 {[%clk 0:02:34.2]} 16. cxd5 {[%clk 0:02:07.9]} 16... cxd5 {[%clk
0:02:34.4]} 17. dxe5 {[%clk 0:02:01.3]} 17... Nxe5 {[%clk 0:02:34.3]} 18. Nf3
{[%clk 0:01:59.1]} 18... Nxf3+ {[%clk 0:02:29.4]} 19. Qxf3 {[%clk 0:01:59]}
19... Be5 {[%clk 0:02:30]} 20. Bg2 {[%clk 0:01:33.5]} 20... h5 {[%clk
0:02:20.6]} 21. Red1 {[%clk 0:01:29.4]} 21... d4 {[%clk 0:02:09.4]} 22. exd4
{[%clk 0:01:22.9]} 22... Bxd4 {[%clk 0:02:09.6]} 23. Rxd4 {[%clk 0:01:09.5]}
23... Rxd4 {[%clk 0:02:08.3]} 24. Nd5 {[%clk 0:01:09.7]} 24... Rxd5 {[%clk
0:01:59.3]} 25. Bxf6 {[%clk 0:01:09.6]} 25... Qa3 {[%clk 0:01:54.8]} 26. Rc7
{[%clk 0:01:02.2]} 26... Rd2 {[%clk 0:01:44.8]} 27. Bxg7 {[%clk 0:00:54.1]}
27... Qd6 {[%clk 0:01:34.1]} 28. Bc3 {[%clk 0:00:51.2]} 28... Rde2 {[%clk
0:01:17.3]} 29. Rc4 {[%clk 0:00:42.9]} 29... Rc2 {[%clk 0:01:13.9]} 30. Kh2
{[%clk 0:00:33.8]} 30... b5 {[%clk 0:01:13.2]} 31. Rc6 {[%clk 0:00:25.1]} 31...
Qe7 {[%clk 0:01:01.9]} 32. Qf4 {[%clk 0:00:18.2]} 32... h4 {[%clk 0:00:57.5]}
33. Qh6 {[%clk 0:00:08.6]} 33... hxg3+ {[%clk 0:00:57.1]} 34. Kxg3 {[%clk
0:00:08.7]} 34... Rxc3+ {[%clk 0:00:56.5]} 35. Rxc3 {[%clk 0:00:04.7]} 35...
Qe5+ {[%clk 0:00:57]} 0-1

[Event "Late-Titled-Tuesday-Blitz-April-23-2024"]
[Site "Chess.com"]
[Date "2024.04.23"]
[Round "3"]
[White "Rud_Makarian"]
[Black "carokannlover213"]
[Result "1-0"]
[WhiteElo "3054"]
[BlackElo "2785"]
[TimeControl "180+1"]
[EndTime "14:29:02 PDT"]
[Termination "Rud_Makarian won on time"]

1. d4 {[%clk 0:03:00.9]} 1... Nf6 {[%clk 0:03:00.2]} 2. c4 {[%clk 0:03:01.3]}
2... e6 {[%clk 0:03:00.9]} 3. Nf3 {[%clk 0:03:01.9]} 3... d5 {[%clk 0:03:01.6]}
4. g3 {[%clk 0:03:02.5]} 4... Bb4+ {[%clk 0:03:02.2]} 5. Bd2 {[%clk 0:03:02.4]}
5... a5 {[%clk 0:03:02.7]} 6. Qc2 {[%clk 0:03:02.3]} 6... O-O {[%clk 0:03:02.7]}
7. Bg2 {[%clk 0:03:02.9]} 7... c5 {[%clk 0:03:02.8]} 8. O-O {[%clk 0:03:02.9]}
8... cxd4 {[%clk 0:02:53]} 9. Nxd4 {[%clk 0:02:53.2]} 9... e5 {[%clk 0:02:51.2]}
10. Nb5 {[%clk 0:02:51.2]} 10... Bxd2 {[%clk 0:02:40.7]} 11. Nxd2 {[%clk
0:02:50.2]} 11... d4 {[%clk 0:02:38.9]} 12. c5 {[%clk 0:02:47.9]} 12... Na6
{[%clk 0:02:25.9]} 13. Rac1 {[%clk 0:02:40.7]} 13... Nb4 {[%clk 0:02:21.8]} 14.
Qb1 {[%clk 0:02:17]} 14... Nbd5 {[%clk 0:01:59.3]} 15. Nc4 {[%clk 0:02:14.1]}
15... Qe7 {[%clk 0:01:55.3]} 16. Nbd6 {[%clk 0:01:58.4]} 16... Bg4 {[%clk
0:01:51.6]} 17. Rfe1 {[%clk 0:01:53.1]} 17... Rfd8 {[%clk 0:01:39.8]} 18. e3
{[%clk 0:01:48.7]} 18... dxe3 {[%clk 0:01:33.7]} 19. Nxe3 {[%clk 0:01:49.3]}
19... Be6 {[%clk 0:00:46.2]} 20. Nef5 {[%clk 0:01:45.4]} 20... Bxf5 {[%clk
0:00:33.8]} 21. Qxf5 {[%clk 0:01:46.3]} 21... Nb4 {[%clk 0:00:08.9]} 22. Bxb7
{[%clk 0:01:32.6]} 22... Rab8 {[%clk 0:00:06.5]} 23. a3 {[%clk 0:01:20]} 23...
Na2 {[%clk 0:00:02.5]} 24. Ra1 {[%clk 0:01:19.4]} 24... Rxd6 {[%clk 0:00:03.1]}
25. cxd6 {[%clk 0:01:19.3]} 25... Qxb7 {[%clk 0:00:03.7]} 26. Rxa2 {[%clk
0:01:18.5]} 26... e4 {[%clk 0:00:04]} 27. Raa1 {[%clk 0:01:14.8]} 27... Qb6
{[%clk 0:00:02.2]} 28. Rad1 {[%clk 0:01:13.1]} 28... Rd8 {[%clk 0:00:02.8]} 29.
Rxe4 {[%clk 0:01:00.7]} 29... Nxe4 {[%clk 0:00:02.6]} 30. Qxe4 {[%clk
0:01:01.6]} 30... Qxb2 {[%clk 0:00:02.2]} 31. d7 {[%clk 0:00:45.4]} 31... Qxa3
{[%clk 0:00:01.8]} 32. Qe8+ {[%clk 0:00:45.6]} 32... Qf8 {[%clk 0:00:02.3]} 33.
Re1 {[%clk 0:00:45.6]} 33... a4 {[%clk 0:00:02.3]} 34. Qxd8 {[%clk 0:00:44.3]}
1-0

[Event "Late-Titled-Tuesday-Blitz-April-23-2024"]
[Site "Chess.com"]
[Date "2024.04.23"]
[Round "3"]
[White "LeninGuerra"]
[Black "Cluke86"]
[Result "1-0"]
[WhiteElo "2680"]
[BlackElo "2316"]
[TimeControl "180+1"]
[EndTime "14:29:02 PDT"]
[Termination "LeninGuerra won on time"]

1. e4 {[%clk 0:03:00.9]} 1... d6 {[%clk 0:02:54.7]} 2. d4 {[%clk 0:03:00.5]}
2... Nf6 {[%clk 0:02:54.9]} 3. Bd3 {[%clk 0:02:59.4]} 3... e5 {[%clk 0:02:54.9]}
4. Ne2 {[%clk 0:02:59.1]} 4... Be7 {[%clk 0:02:54.3]} 5. c3 {[%clk 0:02:59.3]}
5... c6 {[%clk 0:02:52.7]} 6. O-O {[%clk 0:02:59.7]} 6... Nbd7 {[%clk 0:02:52]}
7. f4 {[%clk 0:02:59.9]} 7... Qc7 {[%clk 0:02:50.2]} 8. Nd2 {[%clk 0:02:59.4]}
8... b5 {[%clk 0:02:40]} 9. Nf3 {[%clk 0:02:58.8]} 9... a6 {[%clk 0:02:38.4]}
10. Ng3 {[%clk 0:02:58.7]} 10... g6 {[%clk 0:02:31.2]} 11. Kh1 {[%clk
0:02:41.8]} 11... Bb7 {[%clk 0:02:29.1]} 12. b3 {[%clk 0:02:39.6]} 12... h5
{[%clk 0:02:25.8]} 13. fxe5 {[%clk 0:02:34.4]} 13... dxe5 {[%clk 0:02:25.3]} 14.
Ng5 {[%clk 0:02:27.8]} 14... h4 {[%clk 0:02:20.4]} 15. Ne2 {[%clk 0:02:27.3]}
15... Rd8 {[%clk 0:01:44.2]} 16. h3 {[%clk 0:02:22.9]} 16... Rf8 {[%clk
0:01:38.4]} 17. Qe1 {[%clk 0:02:18]} 17... Rh8 {[%clk 0:01:34.9]} 18. Ng1 {[%clk
0:02:01.9]} 18... c5 {[%clk 0:01:25.2]} 19. d5 {[%clk 0:02:00.7]} 19... c4
{[%clk 0:01:24.8]} 20. bxc4 {[%clk 0:02:00.7]} 20... bxc4 {[%clk 0:01:25]} 21.
Bc2 {[%clk 0:02:01.4]} 21... Nc5 {[%clk 0:00:55.1]} 22. N1f3 {[%clk 0:02:00.6]}
22... Nd3 {[%clk 0:00:54.9]} 23. Qe3 {[%clk 0:01:18.8]} 23... Bc5 {[%clk
0:00:48.2]} 24. Qd2 {[%clk 0:01:10.7]} 24... Nxc1 {[%clk 0:00:42.6]} 25. Raxc1
{[%clk 0:01:09]} 25... Nh5 {[%clk 0:00:41.3]} 26. Ba4+ {[%clk 0:00:59.6]} 26...
Kf8 {[%clk 0:00:37]} 27. Nxh4 {[%clk 0:00:50.2]} 27... Ng3+ {[%clk 0:00:35.2]}
28. Kh2 {[%clk 0:00:50.4]} 28... Nxf1+ {[%clk 0:00:33.9]} 29. Rxf1 {[%clk
0:00:51.3]} 29... Rxh4 {[%clk 0:00:18.9]} 30. Ne6+ {[%clk 0:00:49.2]} 30... Kg8
{[%clk 0:00:11.6]} 31. Nxc7 {[%clk 0:00:49.8]} 31... Rxe4 {[%clk 0:00:07.7]} 32.
Qg5 {[%clk 0:00:47.9]} 32... Be3 {[%clk 0:00:03.8]} 33. Qxd8+ {[%clk 0:00:46.6]}
33... Kg7 {[%clk 0:00:03.6]} 34. Ne8+ {[%clk 0:00:42.2]} 1-0

[Event "Late-Titled-Tuesday-Blitz-April-23-2024"]
[Site "Chess.com"]
[Date "2024.04.23"]
[Round "3"]
[White "jcibarra"]
[Black "WindWhistler11"]
[Result "1-0"]
[WhiteElo "2992"]
[BlackElo "2534"]
[TimeControl "180+1"]
[EndTime "14:29:05 PDT"]
[Termination "jcibarra won on time"]

1. e4 {[%clk 0:03:00.9]} 1... e6 {[%clk 0:02:59.2]} 2. d4 {[%clk 0:03:00.8]}
2... d5 {[%clk 0:02:59.7]} 3. Nc3 {[%clk 0:03:01.6]} 3... Bb4 {[%clk 0:02:59.5]}
4. Ne2 {[%clk 0:03:01.4]} 4... Nc6 {[%clk 0:02:54.5]} 5. a3 {[%clk 0:03:01.3]}
5... Ba5 {[%clk 0:02:54]} 6. b4 {[%clk 0:02:59.8]} 6... Bb6 {[%clk 0:02:54.2]}
7. Bb2 {[%clk 0:03:00.5]} 7... Nge7 {[%clk 0:02:53.8]} 8. Qd2 {[%clk 0:02:58.9]}
8... e5 {[%clk 0:02:41.7]} 9. dxe5 {[%clk 0:02:40.7]} 9... Nxe5 {[%clk
0:02:19.1]} 10. Nxd5 {[%clk 0:02:34.5]} 10... Nc4 {[%clk 0:02:18.9]} 11. Qc3
{[%clk 0:02:32.8]} 11... Nxb2 {[%clk 0:02:18.5]} 12. Qxg7 {[%clk 0:02:26.8]}
12... Ng6 {[%clk 0:01:24.2]} 13. Nf6+ {[%clk 0:02:26.4]} 13... Ke7 {[%clk
0:01:24.2]} 14. Nd5+ {[%clk 0:02:26.6]} 14... Ke8 {[%clk 0:01:18.5]} 15. Nef4
{[%clk 0:02:04.1]} 15... Rf8 {[%clk 0:00:33.8]} 16. Nxg6 {[%clk 0:01:12.7]}
16... fxg6 {[%clk 0:00:27.3]} 17. Qe5+ {[%clk 0:01:04.5]} 17... Kf7 {[%clk
0:00:22.5]} 18. Qxb2 {[%clk 0:01:02.5]} 18... Kg8 {[%clk 0:00:21.1]} 19. O-O-O
{[%clk 0:00:59.6]} 19... Bxf2 {[%clk 0:00:17.2]} 20. Bc4 {[%clk 0:00:57.1]}
20... Be6 {[%clk 0:00:13.4]} 21. Nb6 {[%clk 0:00:37.3]} 21... Qg5+ {[%clk
0:00:11.6]} 22. Kb1 {[%clk 0:00:36.8]} 22... Bxc4 {[%clk 0:00:12]} 23. Nxc4
{[%clk 0:00:32.8]} 23... Rae8 {[%clk 0:00:11.6]} 24. Rd7 {[%clk 0:00:29.8]}
24... Re7 {[%clk 0:00:10.5]} 25. Rhd1 {[%clk 0:00:28.4]} 25... Rfe8 {[%clk
0:00:05.1]} 26. Qb3 {[%clk 0:00:27.4]} 26... Kf8 {[%clk 0:00:03.1]} 27. Qc3
{[%clk 0:00:27.1]} 1-0

[Event "Late-Titled-Tuesday-Blitz-April-23-2024"]
[Site "Chess.com"]
[Date "2024.04.23"]
[Round "3"]
[White "rhungaski"]
[Black "NowInChess"]
[Result "1-0"]
[WhiteElo "2482"]
[BlackElo "2247"]
[TimeControl "180+1"]
[EndTime "14:29:06 PDT"]
[Termination "rhungaski won on time"]

1. e4 {[%clk 0:02:58.8]} 1... e6 {[%clk 0:03:00.2]} 2. d4 {[%clk 0:02:58.4]}
2... d5 {[%clk 0:03:00.8]} 3. Nc3 {[%clk 0:02:59.1]} 3... Nc6 {[%clk 0:03:00.3]}
4. e5 {[%clk 0:02:52.8]} 4... f6 {[%clk 0:02:59.9]} 5. Nf3 {[%clk 0:02:49.9]}
5... fxe5 {[%clk 0:02:59.9]} 6. dxe5 {[%clk 0:02:48.6]} 6... Nge7 {[%clk
0:02:37.2]} 7. Bd3 {[%clk 0:02:37.7]} 7... Nb4 {[%clk 0:02:29.1]} 8. Ng5 {[%clk
0:02:01.1]} 8... Nxd3+ {[%clk 0:02:00.2]} 9. Qxd3 {[%clk 0:02:02]} 9... g6
{[%clk 0:01:39.3]} 10. h4 {[%clk 0:01:49.7]} 10... Bg7 {[%clk 0:01:31.5]} 11.
Bf4 {[%clk 0:01:47.7]} 11... O-O {[%clk 0:01:24.7]} 12. g3 {[%clk 0:01:45.7]}
12... c5 {[%clk 0:00:58.7]} 13. O-O-O {[%clk 0:01:38.7]} 13... Bd7 {[%clk
0:00:47.2]} 14. Nce4 {[%clk 0:01:04.1]} 14... c4 {[%clk 0:00:28.9]} 15. Qd2
{[%clk 0:01:01.5]} 15... Nc6 {[%clk 0:00:23.3]} 16. Nf6+ {[%clk 0:00:54.4]}
16... Bxf6 {[%clk 0:00:19.4]} 17. exf6 {[%clk 0:00:55.3]} 17... Qxf6 {[%clk
0:00:18.4]} 18. Bd6 {[%clk 0:00:31.2]} 18... Rfe8 {[%clk 0:00:10.7]} 19. f4
{[%clk 0:00:31.2]} 19... c3 {[%clk 0:00:05.8]} 20. bxc3 {[%clk 0:00:30.3]} 20...
Na5 {[%clk 0:00:05.9]} 21. Qd4 {[%clk 0:00:20.7]} 21... Qxd4 {[%clk 0:00:04.2]}
22. cxd4 {[%clk 0:00:21.6]} 22... Nc4 {[%clk 0:00:04.2]} 23. Be5 {[%clk
0:00:20.1]} 23... Rac8 {[%clk 0:00:02.8]} 24. Rd3 {[%clk 0:00:19.3]} 24... Ba4
{[%clk 0:00:01.8]} 25. Rh2 {[%clk 0:00:18.5]} 1-0

[Event "Late-Titled-Tuesday-Blitz-April-23-2024"]
[Site "Chess.com"]
[Date "2024.04.23"]
[Round "3"]
[White "merinasian"]
[Black "Mischuk_D"]
[Result "0-1"]
[WhiteElo "2519"]
[BlackElo "2767"]
[TimeControl "180+1"]
[EndTime "14:29:08 PDT"]
[Termination "Mischuk_D won on time"]

1. d4 {[%clk 0:03:00.9]} 1... d5 {[%clk 0:02:58.2]} 2. Nf3 {[%clk 0:03:00]} 2...
e6 {[%clk 0:02:58.1]} 3. c4 {[%clk 0:02:58.8]} 3... c6 {[%clk 0:02:57.7]} 4. e3
{[%clk 0:02:58.6]} 4... Nf6 {[%clk 0:02:56.2]} 5. Nbd2 {[%clk 0:02:58.5]} 5...
Nbd7 {[%clk 0:02:54.3]} 6. Bd3 {[%clk 0:02:58.5]} 6... Bd6 {[%clk 0:02:53.9]} 7.
O-O {[%clk 0:02:58.4]} 7... O-O {[%clk 0:02:54.4]} 8. e4 {[%clk 0:02:58.7]} 8...
e5 {[%clk 0:02:55.1]} 9. cxd5 {[%clk 0:02:57.7]} 9... cxd5 {[%clk 0:02:56]} 10.
exd5 {[%clk 0:02:57.6]} 10... exd4 {[%clk 0:02:56.1]} 11. Nc4 {[%clk 0:02:57.3]}
11... Bc5 {[%clk 0:02:54.8]} 12. Bg5 {[%clk 0:02:48.3]} 12... h6 {[%clk
0:02:54.4]} 13. Bh4 {[%clk 0:02:48.6]} 13... Re8 {[%clk 0:02:47.2]} 14. Bc2
{[%clk 0:02:38]} 14... b5 {[%clk 0:02:46.7]} 15. Na3 {[%clk 0:02:31.6]} 15...
Qb6 {[%clk 0:02:46.1]} 16. Qd3 {[%clk 0:02:23]} 16... Ba6 {[%clk 0:02:46]} 17.
Rad1 {[%clk 0:02:07]} 17... Bxa3 {[%clk 0:02:41.3]} 18. bxa3 {[%clk 0:01:41.3]}
18... b4 {[%clk 0:02:41.6]} 19. Qxd4 {[%clk 0:01:31.4]} 19... Bxf1 {[%clk
0:02:41.5]} 20. Kxf1 {[%clk 0:01:31.3]} 20... Qa6+ {[%clk 0:02:33.9]} 21. Bd3
{[%clk 0:01:29.1]} 21... Qxa3 {[%clk 0:02:33.9]} 22. Bb5 {[%clk 0:01:15.6]}
22... Re4 {[%clk 0:02:33.2]} 23. Qd2 {[%clk 0:01:10.8]} 23... Rb8 {[%clk
0:01:47.2]} 24. Bc6 {[%clk 0:01:06.1]} 24... Qa6+ {[%clk 0:01:44.7]} 25. Kg1
{[%clk 0:01:00.2]} 25... Qe2 {[%clk 0:01:44.7]} 26. Bg3 {[%clk 0:00:54.7]} 26...
Rbe8 {[%clk 0:01:38.7]} 27. h3 {[%clk 0:00:28.3]} 27... Qxd2 {[%clk 0:01:36.2]}
28. Rxd2 {[%clk 0:00:28.5]} 28... Re2 {[%clk 0:01:35]} 29. Rd4 {[%clk 0:00:24]}
29... a5 {[%clk 0:01:34]} 30. d6 {[%clk 0:00:19]} 30... Rxa2 {[%clk 0:01:29.5]}
31. Bh4 {[%clk 0:00:18.4]} 31... Rd8 {[%clk 0:01:21.8]} 32. Nd2 {[%clk
0:00:11.9]} 32... Ne5 {[%clk 0:01:16.6]} 33. Bb5 {[%clk 0:00:09.8]} 33... g5
{[%clk 0:01:10.5]} 34. Bg3 {[%clk 0:00:09.3]} 34... Ned7 {[%clk 0:01:08.1]} 35.
Kh2 {[%clk 0:00:08.3]} 35... Rb8 {[%clk 0:01:06.4]} 36. Bc6 {[%clk 0:00:07.7]}
36... b3 {[%clk 0:01:05.9]} 37. Nxb3 {[%clk 0:00:05.3]} 37... Rxb3 {[%clk
0:01:05.6]} 38. Rc4 {[%clk 0:00:03.7]} 38... Rxg3 {[%clk 0:01:01.6]} 39. Kxg3
{[%clk 0:00:02.9]} 39... Rd2 {[%clk 0:01:02.3]} 40. Bxd7 {[%clk 0:00:01.7]}
40... Nxd7 {[%clk 0:01:02.2]} 41. Ra4 {[%clk 0:00:02.1]} 41... Rd5 {[%clk
0:01:01.8]} 42. Kg4 {[%clk 0:00:01.3]} 42... Kg7 {[%clk 0:01:02.1]} 43. f4
{[%clk 0:00:01.1]} 43... Nf6+ {[%clk 0:01:01.8]} 0-1

[Event "Late-Titled-Tuesday-Blitz-April-23-2024"]
[Site "Chess.com"]
[Date "2024.04.23"]
[Round "3"]
[White "SerGo055"]
[Black "semchik90"]
[Result "1-0"]
[WhiteElo "2598"]
[BlackElo "2382"]
[TimeControl "180+1"]
[EndTime "14:29:09 PDT"]
[Termination "SerGo055 won by checkmate"]

1. d4 {[%clk 0:02:57.4]} 1... d5 {[%clk 0:02:59.3]} 2. Nf3 {[%clk 0:02:57.2]}
2... Nf6 {[%clk 0:02:58.9]} 3. c4 {[%clk 0:02:57.2]} 3... c6 {[%clk 0:02:59.3]}
4. Nc3 {[%clk 0:02:57]} 4... c5 {[%clk 0:03:00.2]} 5. cxd5 {[%clk 0:02:55.1]}
5... Nxd5 {[%clk 0:02:59.4]} 6. Nxd5 {[%clk 0:02:27.8]} 6... Qxd5 {[%clk
0:02:58.3]} 7. dxc5 {[%clk 0:02:28.4]} 7... Qxc5 {[%clk 0:02:58.1]} 8. e3 {[%clk
0:01:40.5]} 8... Nc6 {[%clk 0:02:57.1]} 9. Be2 {[%clk 0:01:36.7]} 9... Bg4
{[%clk 0:02:56.2]} 10. O-O {[%clk 0:01:37.1]} 10... Rd8 {[%clk 0:02:55.9]} 11.
Qa4 {[%clk 0:01:37.4]} 11... Bd7 {[%clk 0:02:52.2]} 12. Rd1 {[%clk 0:01:29.3]}
12... e5 {[%clk 0:02:49]} 13. Bd2 {[%clk 0:01:18.3]} 13... Be7 {[%clk
0:02:35.6]} 14. Rac1 {[%clk 0:01:17.8]} 14... Qb6 {[%clk 0:02:35.1]} 15. Bc3
{[%clk 0:01:13.3]} 15... O-O {[%clk 0:02:32.6]} 16. Qe4 {[%clk 0:01:09.6]} 16...
f6 {[%clk 0:02:26.8]} 17. Bd3 {[%clk 0:01:06.2]} 17... g6 {[%clk 0:02:14.7]} 18.
Bc4+ {[%clk 0:01:04.6]} 18... Kg7 {[%clk 0:02:14.8]} 19. a3 {[%clk 0:00:53.9]}
19... Bf5 {[%clk 0:02:14.2]} 20. Qh4 {[%clk 0:00:51.7]} 20... Rxd1+ {[%clk
0:02:09.4]} 21. Rxd1 {[%clk 0:00:51.7]} 21... Rd8 {[%clk 0:02:10.1]} 22. Re1
{[%clk 0:00:45.7]} 22... g5 {[%clk 0:02:01.4]} 23. Qg3 {[%clk 0:00:40.4]} 23...
h5 {[%clk 0:02:00.5]} 24. h4 {[%clk 0:00:28.2]} 24... g4 {[%clk 0:02:00.5]} 25.
e4 {[%clk 0:00:17]} 25... Bg6 {[%clk 0:01:57.9]} 26. Nd2 {[%clk 0:00:16.5]}
26... Nd4 {[%clk 0:01:57.2]} 27. Bd5 {[%clk 0:00:14.8]} 27... Qb5 {[%clk
0:01:51.5]} 28. Nf1 {[%clk 0:00:12.6]} 28... Ne2+ {[%clk 0:01:49.9]} 29. Rxe2
{[%clk 0:00:12.9]} 29... Qxe2 {[%clk 0:01:50.8]} 30. Ne3 {[%clk 0:00:12.4]}
30... Bc5 {[%clk 0:01:46.6]} 31. Bxe5 {[%clk 0:00:11.9]} 31... fxe5 {[%clk
0:01:43.6]} 32. Qxe5+ {[%clk 0:00:12]} 32... Kh7 {[%clk 0:01:39]} 33. Qc7+
{[%clk 0:00:11.8]} 33... Kh6 {[%clk 0:01:36.7]} 34. Qxd8 {[%clk 0:00:12]} 34...
Bxe3 {[%clk 0:01:33.8]} 35. fxe3 {[%clk 0:00:12.1]} 35... Qxe3+ {[%clk
0:01:33.7]} 36. Kh2 {[%clk 0:00:04.7]} 36... Qf4+ {[%clk 0:01:34]} 37. Kg1
{[%clk 0:00:04.8]} 37... Qe3+ {[%clk 0:01:33.2]} 38. Kh2 {[%clk 0:00:05]} 38...
g3+ {[%clk 0:01:26.5]} 39. Kh3 {[%clk 0:00:05.2]} 39... Qf4 {[%clk 0:01:27.1]}
40. Qg5+ {[%clk 0:00:05.5]} 40... Qxg5 {[%clk 0:01:25.8]} 41. hxg5+ {[%clk
0:00:06.4]} 41... Kxg5 {[%clk 0:01:26.7]} 42. Kxg3 {[%clk 0:00:07.3]} 42... b6
{[%clk 0:01:26.3]} 43. e5 {[%clk 0:00:07.1]} 43... h4+ {[%clk 0:01:26.2]} 44.
Kf3 {[%clk 0:00:07.3]} 44... Kf5 {[%clk 0:01:26.7]} 45. Be4+ {[%clk 0:00:07.4]}
45... Kg5 {[%clk 0:01:27]} 46. Bxg6 {[%clk 0:00:08]} 46... Kxg6 {[%clk
0:01:27.9]} 47. Kg4 {[%clk 0:00:08.7]} 47... Kf7 {[%clk 0:01:28.7]} 48. Kf5
{[%clk 0:00:08.9]} 48... Ke7 {[%clk 0:01:27.9]} 49. e6 {[%clk 0:00:09.3]} 49...
Kd6 {[%clk 0:01:28.8]} 50. Kf6 {[%clk 0:00:09.6]} 50... Kd5 {[%clk 0:01:29.3]}
51. e7 {[%clk 0:00:10.5]} 51... Kd4 {[%clk 0:01:29.4]} 52. e8=Q {[%clk 0:00:11]}
52... Kc4 {[%clk 0:01:29.6]} 53. Qe4+ {[%clk 0:00:11.3]} 53... Kb3 {[%clk
0:01:30.5]} 54. Qd4 {[%clk 0:00:11.8]} 54... b5 {[%clk 0:01:29.6]} 55. Qc3+
{[%clk 0:00:11.5]} 55... Ka4 {[%clk 0:01:29.4]} 56. Qb4# {[%clk 0:00:11.4]} 1-0